fUSD/lending_fUSD_20260307
["ID","MTS","AMOUNT","RATE_DAILY","PERIOD"]
[407902150,1772901037527,-308.5174995,0.00016,2]
[407902151,1772901037538,-36170.83433951,0.00016,2]
[407902152,1772901037548,-3955.2,0.00016,2]
[407902153,1772901037558,-521.74814049,0.00016115,2]
[407902155,1772901037568,-2086.38,0.0001613,2]
[407902156,1772901037578,-208.79,0.00016273,2]
[407902157,1772901037588,-1000.0,0.00016296,2]
[407902158,1772901037598,-3408.2692828,0.00016344,2]
[407902160,1772901037607,-1389.52,0.00016365,2]
[407902161,1772901037616,-500.0,0.00016395,2]
[407902162,1772901037626,-500.0,0.00016395,2]
[407902163,1772901037635,-500.0,0.00016498,2]
[407902165,1772901037645,-500.0,0.00016498,2]
[407902166,1772901037654,-2086.38,0.00016523,2]
[407902167,1772901037663,-2162.31,0.00016533,2]
[407902168,1772901037674,-559.01,0.00016553,2]
[407902170,1772901037684,-1500.0,0.00016565,2]
[407902171,1772901037694,-221.23,0.00016571,3]
[407902172,1772901037703,-1852.42,0.00016712,2]
[407902173,1772901037713,-200.0,0.00016714,2]
[407902175,1772901037722,-9564.11,0.00016766,2]
[407902176,1772901037732,-591.67,0.00016777,2]
[407902177,1772901037742,-1522.12823712,0.00016789,2]
[407902178,1772901037758,-428.41450544,0.00016789,2]
[407902180,1772901037769,-903.93718342,0.00016789,2]
[407902181,1772901037781,-553.78935682,0.00016789,2]
[407902182,1772901037791,-696.21064318,0.00016823,2]
[407902184,1772901037823,-4096.00935682,0.00016823,2]
[407902185,1772901037835,-1090.53,0.00016823,2]
[407902187,1772901037844,-1389.52,0.00016846,2]
[407902188,1772901037854,-2086.38,0.00016916,2]
[407902189,1772901037864,-500.0,0.00017095,2]
[407902190,1772901037874,-3408.2692828,0.00017233,2]
[407902192,1772901037882,-2086.38,0.0001731,2]
[407902193,1772901037892,-1389.52,0.00017327,2]
[407902194,1772901037901,-2500.0,0.0001749,2]
[407902195,1772901037910,-421.65278046,0.0001749,2]
[407902196,1772901037920,-1482.1370345,0.00017494,2]
[407902198,1772901037929,-555.4885658,0.00017494,2]
[407902199,1772901037938,-1243.3053403,0.00017573,2]
[407902200,1772901037947,-4782.49838344,0.00017628,2]
[407902201,1772901037957,-3408.2692828,0.00017678,2]
[407902203,1772901037966,-397.28,0.00017718,2]
[407902204,1772901037975,-4243.21005066,0.00017728,2]
[407902205,1772901037986,-2046.0101086,0.00017728,2]
[407902254,1772901039743,-892.18335078,0.00017728,2]
[407902255,1772901039758,-309.45272592,0.00017728,2]
[407902256,1772901039769,-912.1691328,0.00017728,2]
[407902257,1772901039780,-850.0,0.00017728,2]
[407902258,1772901039792,-178.42463124,0.00017728,2]
[407902259,1772901039802,-3724.70321572,0.00017728,2]
[407902260,1772901039970,-6633.13592568,0.00017728,2]
[407902261,1772901040263,-1844.30535101,0.00017628,2]
[407902262,1772901040273,-57.76464899,0.00017728,2]
[407902263,1772901040285,-19079.30620961,0.00017728,2]
[407902264,1772901040295,-5926.93,0.00017728,2]
[407902265,1772901040305,-999.99,0.00017728,2]
[407902266,1772901040314,-9999.99,0.00017728,2]
[407902267,1772901040324,-6592.93,0.00017728,2]
[407902268,1772901040334,-150.99,0.00017728,2]
[407902269,1772901040344,-1116.2,0.00017728,2]
[407902270,1772901040354,-6048.39,0.00017728,2]
[407902271,1772901040364,-9999.99,0.00017728,2]
[407902272,1772901040374,-349.99,0.00017728,2]
[407902273,1772901040384,-288.67580439,0.00017808,2]
[407902274,1772901040393,-1389.52,0.00017809,2]
[407902275,1772901040403,-4782.49838341,0.0001788,2]
[407902276,1772901040412,-3000.0,0.00018082,7]
[407902277,1772901040422,-1100.0,0.00018082,7]
[407902278,1772901040432,-2700.0,0.00018082,7]
[407902279,1772901040441,-3408.2692828,0.00018122,2]
[407902280,1772901040451,-4782.49838341,0.00018133,2]
[407902281,1772901040460,-1389.52,0.0001829,2]
[407902282,1772901040470,-2000.0,0.00018332,2]
[407902283,1772901040479,-4782.49838341,0.00018385,2]
[407902284,1772901040489,-788.88,0.00018475,2]
[407902285,1772901040499,-3408.2692828,0.00018567,2]
[407902286,1772901040508,-1600.0,0.00018604,2]
[407902287,1772901040519,-4782.49838341,0.00018638,2]
[407902288,1772901040528,-397.28,0.00018641,2]
[407902289,1772901040538,-14267.24,0.00018651,2]
[407902290,1772901040547,-3923.57,0.00018719,2]
[407902291,1772901040557,-855.0,0.0001872,2]
[407902292,1772901040566,-500.0,0.00018795,2]
[407902293,1772901040576,-163.67805044,0.0001886,2]
[407902294,1772901040586,-4782.49838341,0.0001889,2]
[407902295,1772901040596,-3240.0,0.0001891,2]
[407902296,1772901040606,-500.0,0.0001895,2]
[407902298,1772901040616,-4610.79837758,0.00018952,2]
[407902299,1772901040626,-693.3919763,0.00018999,2]
[407902300,1772901040637,-174.61919141,0.00018999,2]
[407902301,1772901040647,-693.3919763,0.00018999,2]
[407902302,1772901040656,-500.0,0.00018999,2]
[407902303,1772901040666,-500.0,0.00018999,2]
[407902304,1772901040676,-500.0,0.00018999,2]
[407902305,1772901040685,-500.0,0.00018999,2]
[407902306,1772901040696,-500.0,0.00018999,2]
[407902307,1772901040707,-300.19989737,0.00018999,2]
[407902308,1772901040717,-500.0,0.00018999,2]
[407902309,1772901040727,-500.0,0.00018999,2]
[407902310,1772901040736,-500.0,0.00018999,2]
[407902311,1772901040746,-500.0,0.00018999,2]
[407902312,1772901040759,-500.0,0.00018999,2]
[407902313,1772901040768,-500.0,0.00018999,2]
[407902314,1772901040778,-693.3919763,0.00018999,2]
[407902315,1772901040788,-500.0,0.00018999,2]
[407902316,1772901040799,-600.0,0.00019,6]
[407902317,1772901040809,-3408.2692828,0.00019011,2]
[407902318,1772901040819,-933.94657593,0.00019014,2]
[407902319,1772901040830,-161.0,0.0001904,2]
[407902320,1772901040839,-719.04747942,0.00019054,2]
[407902321,1772901040850,-933.94657593,0.00019068,2]
[407902322,1772901040860,-1482.1370345,0.00019084,2]
[407902323,1772901040869,-555.4885658,0.00019085,2]
[407902324,1772901040879,-1300.0,0.000191,6]
[407902325,1772901040889,-745.65223616,0.00019109,2]
[407902326,1772901040898,-350.0,0.00019125,2]
[407902327,1772901040908,-4782.49838341,0.00019143,2]
[407902328,1772901040918,-933.94657593,0.00019151,2]
[407902329,1772901040928,-773.2413689,0.00019164,2]
[407902330,1772901040938,-3000.0,0.00019178,7]
[407902331,1772901040948,-1100.0,0.00019178,7]
[407902332,1772901040957,-2700.0,0.00019178,7]
[407902333,1772901040967,-2000.0,0.000192,7]
[407902334,1772901040976,-801.85129955,0.00019219,2]
[407902335,1772901040986,-933.94657593,0.00019233,2]
[407902336,1772901040996,-1243.3053403,0.00019242,2]
[407902337,1772901041006,-1279.0,0.00019243,2]
[407902338,1772901041015,-1212.0,0.00019243,2]
[407902339,1772901041030,-922.0,0.00019243,2]
[407902340,1772901041040,-2460.0,0.00019243,2]
[407902341,1772901041050,-5991.0,0.00019243,2]
[407902342,1772901041060,-831.51979763,0.00019274,2]
[407902343,1772901041070,-2700.0,0.000193,7]
[407902344,1772901041080,-933.94657593,0.00019315,2]
[407902345,1772901041089,-862.28603014,0.00019329,2]
[407902346,1772901041099,-4792.22,0.00019346,2]
[407902347,1772901041109,-1090.53,0.00019346,2]
[407902348,1772901041119,-933.94657593,0.0001937,2]
[407902349,1772901041129,-894.19061326,0.00019384,2]
[407902350,1772901041140,-397.28,0.00019385,2]
[407902351,1772901041150,-4782.49838341,0.00019395,2]
[407902352,1772901041160,-3300.0,0.000194,7]
[407902353,1772901041170,-927.27566595,0.00019439,2]
[407902354,1772901041180,-933.94657593,0.00019452,2]
[407902355,1772901041190,-3408.2692828,0.00019456,2]
[407902356,1772901041200,-961.58486559,0.00019494,2]
[407902357,1772901041210,-532.61390214,0.00019498,2]
[407902358,1772901041221,-600.0,0.000195,7]
[407902359,1772901041230,-425.87434013,0.00019511,2]
[407902360,1772901041240,-933.94657593,0.00019534,2]
[407902361,1772901041250,-827.50680267,0.00019547,2]
[407902362,1772901041259,-181.08010149,0.00019547,2]
[407902363,1772901041270,-500.0,0.00019547,2]
[407902364,1772901041281,-997.16350561,0.00019549,2]
[407902365,1772901041290,-168.0,0.00019589,2]
[407902366,1772901041300,-2899.76911409,0.000196,2]
[407902367,1772901041310,-600.0,0.000196,7]
[407902368,1772901041320,-933.94657593,0.00019616,2]
[407902369,1772901041330,-745.0,0.00019633,2]
[407902370,1772901041340,-150.0,0.00019633,2]
[407902371,1772901041349,-294.0,0.00019633,2]
[407902372,1772901041359,-4782.49838341,0.00019648,2]
[407902373,1772901041369,-933.94657593,0.00019699,2]
[407902374,1772901041379,-600.0,0.000197,7]
[407902375,1772901041388,-150.0,0.00019714,2]
[407902376,1772901041399,-150.0,0.00019714,2]
[407902377,1772901041408,-150.0,0.00019714,2]
[407902378,1772901041418,-500.0,0.00019714,2]
[407902379,1772901041428,-500.0,0.00019714,2]
[407902380,1772901041438,-500.0,0.00019714,2]
[407902381,1772901041447,-500.0,0.00019714,2]
[407902382,1772901041457,-500.0,0.00019714,2]
[407902383,1772901041467,-150.0,0.00019714,2]
[407902384,1772901041800,-150.0,0.00019714,2]
[407902385,1772901041879,-500.0,0.00019714,2]
[407902386,1772901041890,-150.0,0.00019714,2]
[407902387,1772901041900,-500.0,0.00019714,2]
[407902388,1772901041910,-164.64776858,0.00019714,2]
[407902389,1772901041919,-180.0,0.00019714,2]
[407902390,1772901041928,-250.0,0.00019714,2]
[407902391,1772901041938,-150.0,0.00019714,2]
[407902392,1772901041947,-150.0,0.00019714,2]
[407902393,1772901041957,-150.0,0.00019714,2]
[407902394,1772901041966,-1000.0,0.00019719,2]
[407902395,1772901041976,-1000.0,0.00019726,2]
[407902396,1772901041985,-1000.0,0.00019726,2]
[407902397,1772901041995,-500.0,0.00019732,2]
[407902398,1772901042004,-1000.0,0.00019733,2]
[407902399,1772901042014,-1000.0,0.00019733,2]
[407902400,1772901042022,-1000.0,0.00019734,2]
[407902401,1772901042032,-671.0,0.00019735,2]
[407902402,1772901042041,-150.0,0.00019735,2]
[407902403,1772901042050,-150.0,0.00019735,2]
[407902404,1772901042059,-150.0,0.00019735,2]
[407902405,1772901042069,-150.0,0.00019735,2]
[407902406,1772901042078,-150.0,0.00019735,2]
[407902407,1772901042087,-150.0,0.00019735,2]
[407902408,1772901042101,-251.0,0.00019735,2]
[407902409,1772901042110,-1000.0,0.00019737,2]
[407902410,1772901042119,-1000.0,0.00019741,2]
[407902411,1772901042128,-1000.0,0.00019743,2]
[407902412,1772901042138,-1000.0,0.00019744,2]
[407902413,1772901042147,-1000.0,0.00019747,2]
[407902414,1772901042156,-1000.0,0.00019749,2]
[407902415,1772901042166,-933.94657593,0.00019753,2]
[407902416,1772901042175,-150.0,0.00019757,2]
[407902417,1772901042184,-150.0,0.00019758,2]
[407902418,1772901042193,-1000.0,0.0001976,2]
[407902419,1772901042203,-1000.0,0.00019761,2]
[407902420,1772901042212,-1000.0,0.00019764,2]
[407902421,1772901042221,-150.0,0.00019765,2]
[407902423,1772901042231,-150.0,0.00019769,2]
[407902425,1772901042241,-150.0,0.00019769,2]
[407902427,1772901042251,-150.0,0.00019769,2]
[407902429,1772901042260,-500.0,0.00019769,2]
[407902431,1772901042270,-500.0,0.00019769,2]
[407902433,1772901042280,-500.0,0.00019769,2]
[407902435,1772901042290,-500.0,0.00019769,2]
[407902436,1772901042299,-150.0,0.00019769,2]
[407902437,1772901042309,-500.0,0.00019769,2]
[407902438,1772901042318,-179.00078399,0.00019769,2]
[407902439,1772901042328,-500.0,0.00019769,2]
[407902440,1772901042337,-500.0,0.00019769,2]
[407902441,1772901042346,-200.0,0.00019769,2]
[407902442,1772901042356,-150.0,0.00019769,2]
[407902443,1772901042365,-1000.0,0.0001977,2]
[407902444,1772901042375,-1000.0,0.00019773,2]
[407902445,1772901042384,-1000.0,0.00019774,2]
[407902446,1772901042393,-397.28,0.00019781,2]
[407902447,1772901042403,-1000.0,0.00019783,2]
[407902448,1772901042412,-1000.0,0.00019783,2]
[407902449,1772901042425,-1000.0,0.00019788,2]
[407902451,1772901042434,-397.28,0.0001979,2]
[407902453,1772901042443,-77462.2990232,0.00019791,2]
[407902455,1772901042452,-1000.0,0.00019791,2]
[407902457,1772901042461,-1000.0,0.00019796,2]
[407902458,1772901042470,-1000.0,0.00019798,2]
[407902459,1772901042480,-1000.0,0.00019798,2]
[407902461,1772901042491,-1000.0,0.00019799,2]
[407902463,1772901042500,-1000.0,0.00019799,2]
[407902465,1772901042510,-32898.3261,0.000198,2]
[407902467,1772901042519,-700.80424,0.000198,2]
[407902469,1772901042529,-700.80425,0.000198,2]
[407902471,1772901042538,-600.0,0.000198,7]
[407902472,1772901042548,-1000.0,0.00019803,2]
[407902473,1772901042558,-150.0,0.00019805,2]
[407902474,1772901042567,-150.0,0.00019805,2]
[407902475,1772901042576,-168.0,0.00019805,2]
[407902476,1772901042585,-150.0,0.0001981,2]
[407902477,1772901042594,-1000.0,0.00019812,2]
[407902478,1772901042603,-1000.0,0.00019813,2]
[407902479,1772901042613,-177.28481416,0.00019818,2]
[407902480,1772901042622,-1000.0,0.00019818,2]
[407902481,1772901042632,-1000.0,0.0001982,2]
[407902482,1772901042641,-1000.0,0.00019821,2]
[407902483,1772901042650,-150.0,0.00019822,2]
[407902484,1772901042660,-244.737577,0.00019824,2]
[407902485,1772901042669,-150.0,0.00019824,2]
[407902486,1772901042679,-150.0,0.00019824,2]
[407902487,1772901042688,-500.0,0.00019824,2]
[407902488,1772901042697,-500.0,0.00019824,2]
[407902489,1772901042707,-500.0,0.00019824,2]
[407902490,1772901042717,-500.0,0.00019824,2]
[407902491,1772901042726,-150.0,0.00019824,2]
[407902492,1772901042735,-175.29398025,0.00019824,2]
[407902493,1772901042745,-350.0,0.00019824,2]
[407902494,1772901042758,-500.0,0.00019824,2]
[407902495,1772901042767,-150.0,0.00019824,2]
[407902496,1772901042777,-1000.0,0.00019826,2]
[407902497,1772901042786,-1000.0,0.00019826,2]
[407902498,1772901042796,-1000.0,0.00019826,2]
[407902499,1772901042806,-150.0,0.00019834,2]
[407902500,1772901042816,-933.94657593,0.00019836,2]
[407902501,1772901042827,-200.0,0.0001984,2]
[407902502,1772901042836,-1000.0,0.00019842,2]
[407902503,1772901042846,-150.0,0.00019842,2]
[407902504,1772901042855,-1000.0,0.00019843,2]
[407902505,1772901042864,-1000.0,0.00019844,2]
[407902506,1772901042874,-164.86,0.00019847,2]
[407902507,1772901042883,-970.92012201,0.00019849,2]
[407902508,1772901042892,-1000.0,0.00019853,2]
[407902509,1772901042901,-150.0,0.00019855,2]
[407902510,1772901042911,-1000.0,0.00019856,2]
[407902511,1772901042920,-150.0,0.00019857,2]
[407902512,1772901042929,-150.0,0.00019859,2]
[407902513,1772901042939,-1000.0,0.00019863,2]
[407902514,1772901042948,-150.0,0.0001987,2]
[407902515,1772901042958,-1000.0,0.00019871,2]
[407902516,1772901042967,-1000.0,0.00019873,2]
[407902517,1772901042976,-1000.0,0.00019875,2]
[407902518,1772901042986,-1000.0,0.00019876,2]
[407902519,1772901042995,-1000.0,0.00019876,2]
[407902520,1772901043005,-150.0,0.00019877,2]
[407902521,1772901043015,-1000.0,0.00019877,2]
[407902523,1772901043024,-250.0,0.00019878,2]
[407902525,1772901043034,-250.0,0.00019878,2]
[407902526,1772901043043,-500.0,0.00019878,2]
[407902528,1772901043052,-500.0,0.00019878,2]
[407902529,1772901043062,-500.0,0.00019878,2]
[407902530,1772901043071,-350.0,0.00019878,2]
[407902531,1772901043080,-150.0,0.00019878,2]
[407902532,1772901043090,-500.0,0.00019878,2]
[407902533,1772901043099,-1000.0,0.00019879,2]
[407902534,1772901043108,-1000.0,0.00019881,2]
[407902535,1772901043118,-1000.0,0.00019884,2]
[407902536,1772901043127,-1000.0,0.00019884,2]
[407902537,1772901043136,-150.0,0.00019885,2]
[407902538,1772901043146,-150.0,0.00019894,2]
[407902539,1772901043155,-150.0,0.00019895,2]
[407902540,1772901043164,-151.0,0.00019897,2]
[407902541,1772901043174,-333.70286412,0.00019898,2]
[407902542,1772901043183,-333.70286412,0.00019898,2]
[407902543,1772901043196,-333.70286412,0.00019899,2]
[407902544,1772901043206,-333.70286412,0.00019899,2]
[407902545,1772901043215,-333.70286412,0.00019899,2]
[407902546,1772901043224,-333.70286412,0.000199,2]
[407902547,1772901043233,-9783.35772538,0.000199,3]
[407902548,1772901043243,-5000.0,0.000199,2]
[407902549,1772901043252,-4782.49838341,0.000199,2]
[407902550,1772901043262,-333.70286412,0.000199,2]
[407902551,1772901043271,-1255.0,0.000199,7]
[407902552,1772901043281,-3408.2692828,0.000199,2]
[407902553,1772901043290,-16477.81590681,0.000199,2]
[407902554,1772901043300,-310.77887769,0.000199,2]
[407902555,1772901043311,-4057.0,0.000199,2]
[407902556,1772901043320,-46999.96014233,0.000199,2]
[407902557,1772901043329,-501.17686871,0.00019904,2]
[407902558,1772901043339,-150.0,0.00019911,2]
[407902559,1772901043348,-1000.0,0.00019912,2]
[407902560,1772901043358,-1000.0,0.00019916,2]
[407902561,1772901043368,-546.0,0.0001992,2]
[407902562,1772901043378,-200.0,0.0001992,2]
[407902563,1772901043387,-200.0,0.0001992,2]
[407902564,1772901043396,-200.0,0.0001992,2]
[407902566,1772901043406,-200.0,0.0001992,2]
[407902567,1772901043415,-200.0,0.0001992,2]
[407902568,1772901043425,-200.0,0.0001992,2]
[407902570,1772901043434,-269.0,0.0001992,2]
[407902571,1772901043443,-1000.0,0.0001992,2]
[407902572,1772901043453,-150.0,0.00019921,2]
[407902573,1772901043463,-3389.243,0.00019922,2]
[407902574,1772901043472,-168.456,0.00019922,2]
[407902575,1772901043482,-150.84045216,0.00019923,2]
[407902576,1772901043492,-150.0,0.00019924,2]
[407902577,1772901043501,-1000.0,0.00019925,2]
[407902578,1772901043511,-1000.0,0.00019926,2]
[407902579,1772901043520,-1000.0,0.00019929,2]
[407902580,1772901043530,-1000.0,0.00019932,2]
[407902581,1772901043540,-500.0,0.00019933,2]
[407902582,1772901043549,-500.0,0.00019933,2]
[407902583,1772901043559,-150.0,0.00019933,2]
[407902584,1772901043569,-500.0,0.00019933,2]
[407902585,1772901043579,-1000.0,0.00019948,2]
[407902586,1772901043588,-150.0,0.00019951,2]
[407902587,1772901043598,-1000.0,0.00019953,2]
[407902588,1772901043607,-1000.0,0.00019953,2]
[407902589,1772901043617,-1000.0,0.00019953,2]
[407902590,1772901043627,-1000.0,0.00019956,2]
[407902591,1772901043636,-150.0,0.00019957,2]
[407902592,1772901043646,-1000.0,0.00019961,2]
[407902593,1772901043655,-1000.0,0.00019961,2]
[407902594,1772901043665,-150.0,0.00019962,2]
[407902595,1772901043674,-164.34884721,0.00019973,2]
[407902596,1772901043684,-350.0,0.00019973,2]
[407902597,1772901043694,-350.0,0.00019973,2]
[407902598,1772901043703,-350.0,0.00019973,2]
[407902599,1772901043712,-350.0,0.00019973,2]
[407902600,1772901043721,-350.0,0.00019973,2]
[407902601,1772901043731,-350.0,0.00019973,2]
[407902602,1772901043740,-350.0,0.00019973,2]
[407902603,1772901043750,-350.0,0.00019973,2]
[407902604,1772901043763,-350.0,0.00019973,2]
[407902605,1772901043772,-185.0,0.00019973,2]
[407902606,1772901043781,-150.0,0.00019973,2]
[407902607,1772901043791,-150.0,0.00019973,2]
[407902608,1772901043801,-1000.0,0.00019978,2]
[407902609,1772901043811,-150.0,0.00019979,2]
[407902610,1772901043820,-1000.0,0.00019981,2]
[407902611,1772901043833,-1000.0,0.00019984,2]
[407902612,1772901043842,-152.70275044,0.00019985,2]
[407902613,1772901043852,-500.0,0.00019988,2]
[407902614,1772901043861,-264.04850966,0.00019988,2]
[407902616,1772901043871,-179.66021598,0.00019988,2]
[407902617,1772901043880,-500.0,0.00019988,2]
[407902618,1772901043889,-288.1666825,0.0001999,2]
[407902619,1772901043898,-288.1666825,0.0001999,2]
[407902620,1772901043907,-288.1666825,0.0001999,2]
[407902621,1772901043917,-500.0,0.00019997,2]
[407902622,1772901043926,-500.0,0.00019997,2]
[407902623,1772901043936,-500.0,0.00019997,2]
[407902624,1772901043946,-1295.19930183,0.00019997,5]
[407902625,1772901043955,-150.0,0.00019997,2]
[407902626,1772901043967,-151.0,0.00019997,2]
[407902627,1772901043977,-82900.6873291,0.00019998,2]
[407902628,1772901043986,-3550.7045179,0.00019998,2]
[407902629,1772901043995,-272590.7335013,0.00019998,2]
[407902630,1772901044004,-15561.2426905,0.00019998,2]
[407902631,1772901044014,-300.0,0.00019999,2]
[407902632,1772901044023,-412.00988586,0.00019999,2]
[407902633,1772901044032,-300.0,0.00019999,2]
[407902634,1772901044042,-666.0,0.00019999,2]
[407902635,1772901044051,-196.03443072,0.00019999,2]
[407902636,1772901044061,-500.0,0.00019999,2]
[407902637,1772901044070,-500.0,0.00019999,2]
[407902638,1772901044079,-500.0,0.00019999,2]
[407902639,1772901044088,-422.5802129,0.00019999,2]
[407902640,1772901044098,-500.0,0.00019999,2]
[407902641,1772901044107,-500.0,0.00019999,2]
[407902642,1772901044117,-500.0,0.00019999,2]
[407902643,1772901044126,-500.0,0.00019999,2]
[407902644,1772901044135,-500.0,0.00019999,2]
[407902645,1772901044144,-500.0,0.00019999,2]
[407902646,1772901044153,-500.0,0.00019999,2]
[407902647,1772901044162,-500.0,0.00019999,2]
[407902648,1772901044172,-500.0,0.00019999,2]
[407902649,1772901044181,-500.0,0.00019999,2]
[407902650,1772901044190,-513.528378,0.00019999,2]
[407902651,1772901044200,-500.0,0.00019999,2]
[407902652,1772901044209,-500.0,0.00019999,2]
[407902653,1772901044218,-500.0,0.00019999,2]
[407902654,1772901044228,-500.0,0.00019999,2]
[407902656,1772901044237,-500.0,0.00019999,2]
[407902657,1772901044246,-500.0,0.00019999,2]
[407902658,1772901044256,-500.0,0.00019999,2]
[407902659,1772901044266,-560.81371769,0.00019999,2]
[407902660,1772901044275,-287.08423227,0.00019999,2]
[407902661,1772901044285,-300.0,0.00019999,2]
[407902662,1772901044294,-3262.0,0.0002,2]
[407902663,1772901044304,-1230398.15841097,0.0002,2]
[407902676,1772901045884,-2614.76381221,0.0002,2]
[407902677,1772901045896,-67769.80586002,0.0002,2]
[407902678,1772901045923,10000.0,0.000349,120]
[407902679,1772901046168,-619.0,0.00019243,2]
[407902680,1772901046178,-10393.65278951,0.0002,2]
[407902681,1772901046189,-637.51207894,0.0002,2]
[407902682,1772901046206,-3600.35049167,0.0002,2]
[407902683,1772901046227,-599.99908632,0.0002,2]
[407902684,1772901046437,-872.25527299,0.00017953,2]
[407902685,1772901046448,-350.0,0.00017953,2]
[407902686,1772901046459,-622.05007799,0.00017953,2]
[407902687,1772901046469,-254.54,0.00019243,2]
[407902688,1772901046479,-122.40992201,0.0002,2]
[407902689,1772901046502,-150.61,0.00019621,2]
[407902690,1772901046511,-3805.58999997,0.0002,2]
[407902691,1772901046523,-839.9099692,0.0002,2]
[407902692,1772901046534,-996.92408764,0.0002,2]
[407902693,1772901046545,-71659.99999995,0.0002,2]
[407902694,1772901046556,-104375.0000005,0.0002,2]
[407902825,1772901068274,2500.0,0.000349,120]
[407902855,1772901095146,5000.0,0.000349,120]
[407902889,1772901162583,173.0,0.00031424,120]
[407902890,1772901169532,415.86,0.000349,120]
[407902901,1772901200568,604.06,0.000349,120]
[407902905,1772901225069,2939.7,0.000349,120]
[407902907,1772901267348,161.0,0.00030482,120]
[407902915,1772901401202,266.0,0.000349,120]
[407902916,1772901404818,0.73467402,0.000349,120]
[407902918,1772901426940,3974.0,0.000339,120]
[407902921,1772901461891,153.0,0.00025579,120]
[407902948,1772901665270,250.0,0.000339,120]
[407902951,1772901726577,1000.0,0.000339,120]
[407902954,1772901782339,1000.0,0.000339,120]
[407902961,1772901819507,10000.0,0.000339,120]
[407902963,1772901837397,899.27,0.000339,120]
[407902966,1772901841548,250.0,0.000339,120]
[407902967,1772901864137,5000.74,0.000339,120]
[407902968,1772901874762,5000.74,0.000339,120]
[407902972,1772902014120,-196.10667132,0.00015,2]
[407902973,1772902029464,2040.67,0.000339,120]
[407902980,1772902132840,201.0,0.0002,30]
[407903075,1772902231448,-53.89332868,0.00015,2]
[407903076,1772902231458,-1704.1346414,0.00015878,2]
[407903077,1772902231467,-150.0,0.00015988,2]
[407903078,1772902231476,-150.0,0.00015988,2]
[407903079,1772902231487,-500.0,0.00015988,2]
[407903081,1772902231497,-150.0,0.00015988,2]
[407903083,1772902231506,-213.30614345,0.00015988,2]
[407903085,1772902231516,-150.0,0.00015988,2]
[407903086,1772902231526,-500.0,0.00015989,2]
[407903087,1772902231536,-500.0,0.00015989,2]
[407903088,1772902231546,-150.0,0.00016043,2]
[407903089,1772902231556,-200.0,0.00016043,2]
[407903090,1772902231566,-500.0,0.00016043,2]
[407903091,1772902231575,-500.0,0.00016044,2]
[407903092,1772902231590,-500.0,0.00016044,2]
[407903093,1772902231601,-150.0,0.00016098,2]
[407903094,1772902231613,-350.0,0.00016098,2]
[407903095,1772902231623,-500.0,0.00016099,2]
[407903096,1772902231633,-429.66021598,0.00016099,2]
[407903097,1772902231643,-150.0,0.00016152,2]
[407903098,1772902231652,-500.0,0.00016153,2]
[407903099,1772902231662,-2500.0,0.00016161,2]
[407903101,1772902231672,-150.0,0.00016207,2]
[407903103,1772902231681,-500.0,0.00016208,2]
[407903104,1772902231691,-500.0,0.00016259,2]
[407903105,1772902231701,-500.0,0.00016259,2]
[407903106,1772902231710,-500.0,0.00016259,2]
[407903107,1772902231720,-500.0,0.00016259,2]
[407903108,1772902231730,-500.0,0.00016259,2]